fUST/lending_fUST_20240216
["ID","MTS","AMOUNT","RATE_DAILY","PERIOD"]
[314137638,1708019438585,-2501.4413969,0.000299,2]
[314137639,1708019438595,-2048.21,0.00029999,2]
[314137640,1708019438606,-2048.21,0.00029999,2]
[314137641,1708019438618,-2048.21,0.00029999,2]
[314137642,1708019438628,-2048.21,0.00029999,2]
[314137643,1708019438638,-2048.21,0.00029999,2]
[314137644,1708019438649,-201733.472394,0.0003,7]
[314137645,1708019438661,-155.0,0.00030266,2]
[314137646,1708019438672,-500.0,0.00030579,2]
[314137647,1708019438682,-163.0736131,0.00030959,2]
[314137648,1708019438692,-326.9429495,0.00031233,2]
[314137649,1708019438702,-308.766801,0.00031233,2]
[314137650,1708019438713,-200.230317,0.00031233,2]
[314137651,1708019438725,-328.2596335,0.00031233,2]
[314137652,1708019438735,-312.8842493,0.00031233,2]
[314137653,1708019438746,-750.0,0.00031264,2]
[314137654,1708019438757,-155.0,0.00031636,2]
[314137655,1708019438768,-1620.0,0.00031898,10]
[314137656,1708019438781,-200.0,0.00031936,15]
[314137657,1708019438792,-360.0,0.00031936,15]
[314137658,1708019438802,-1000.0,0.00031949,2]
[314137659,1708019438814,-40903.0,0.00032,7]
[314137660,1708019438824,-1000.0,0.00032,2]
[314137661,1708019438834,-8312.4965385,0.00032,14]
[314137662,1708019438844,-173.1536496,0.00032055,2]
[314137663,1708019438854,-633.49401725,0.0003224,2]
[314137664,1708019438864,-620.68753747,0.00032304,2]
[314137665,1708019438875,-1250.0,0.00032634,2]
[314137666,1708019438885,-64319.79959961,0.000327,2]
[314137667,1708019438895,-151.0,0.000327,2]
[314137668,1708019438905,-151.0,0.000327,2]
[314137669,1708019438915,-151.0,0.000327,2]
[314137670,1708019438925,-151.0,0.000327,2]
[314137671,1708019438935,-200.0,0.000327,4]
[314137672,1708019438945,-151.0,0.000327,2]
[314137673,1708019438955,-151.0,0.000327,2]
[314137674,1708019438965,-151.0,0.000327,2]
[314137675,1708019438974,-151.0,0.000327,2]
[314137676,1708019438983,-437.239157,0.000327,2]
[314137677,1708019438992,-437.239157,0.000327,2]
[314137678,1708019439003,-381.831354,0.000327,2]
[314137679,1708019439012,-381.831354,0.000327,2]
[314137680,1708019439022,-20775.97657582,0.00032776,3]
[314137681,1708019439168,-16930.91134113,0.00032776,3]
[314137682,1708019439178,-151.0,0.00032776,2]
[314137683,1708019439187,-151.0,0.00032776,2]
[314137684,1708019439197,-500.0,0.000328,2]
[314137685,1708019439207,-500.0,0.000328,2]
[314137686,1708019439217,-500.0,0.000328,2]
[314137687,1708019439227,-970.713559,0.000328,2]
[314137688,1708019439239,-2000.0,0.000328,13]
[314137689,1708019439257,-2000.0,0.000328,13]
[314137691,1708019439267,-2001.177962,0.000328,2]
[314137692,1708019439277,-335.19713709,0.00032808,2]
[314137927,1708019442886,-321.58043892,0.00029893,2]
[314138246,1708019446041,-990.58,0.00029893,2]
[314138248,1708019446050,-178.41956108,0.00029893,2]
[314138250,1708019446059,-500.0,0.00029893,2]
[314138252,1708019446068,-469.59646068,0.00029893,2]
[314138254,1708019446077,-283.56261623,0.00029893,2]
[314138256,1708019446086,-637.71884126,0.00029893,2]
[314138258,1708019446095,-500.0,0.00029893,2]
[314138260,1708019446104,-500.0,0.00029893,2]
[314138262,1708019446113,-500.0,0.00029893,2]
[314138264,1708019446122,-500.0,0.00029893,2]
[314138266,1708019446131,-500.0,0.00029893,2]
[314138268,1708019446140,-500.0,0.00029893,2]
[314138270,1708019446149,-500.0,0.00029893,2]
[314138272,1708019446159,-500.0,0.00029893,2]
[314138274,1708019446168,-500.0,0.00029893,2]
[314138276,1708019446177,-500.0,0.00029893,2]
[314138278,1708019446186,-500.0,0.00029893,2]
[314138280,1708019446195,-500.0,0.00029893,2]
[314138282,1708019446205,-500.0,0.00029893,2]
[314138284,1708019446213,-500.0,0.00029893,2]
[314138286,1708019446222,-500.0,0.00029893,2]
[314138287,1708019446232,-500.0,0.00029893,2]
[314138290,1708019446242,-500.0,0.00029893,2]
[314138292,1708019446251,-500.0,0.00029893,2]
[314138294,1708019446260,-500.0,0.00029893,2]
[314138295,1708019446269,-500.0,0.00029893,2]
[314138297,1708019446278,-500.0,0.00029893,2]
[314138299,1708019446288,-500.0,0.00029893,2]
[314138301,1708019446297,-500.0,0.00029893,2]
[314138303,1708019446306,-500.0,0.00029893,2]
[314138306,1708019446316,-500.0,0.00029893,2]
[314138307,1708019446325,-500.0,0.00029893,2]
[314138309,1708019446334,-500.0,0.00029893,2]
[314138311,1708019446343,-500.0,0.00029893,2]
[314138314,1708019446354,-500.0,0.00029893,2]
[314138316,1708019446363,-500.0,0.00029893,2]
[314138318,1708019446372,-500.0,0.00029893,2]
[314138319,1708019446382,-500.0,0.00029893,2]
[314138321,1708019446390,-500.0,0.00029893,2]
[314138323,1708019446399,-500.0,0.00029893,2]
[314138325,1708019446408,-500.0,0.00029893,2]
[314138328,1708019446418,-500.0,0.00029893,2]
[314138330,1708019446428,-500.0,0.00029893,2]
[314138332,1708019446443,-500.0,0.00029893,2]
[314138334,1708019446452,-500.0,0.00029893,2]
[314138335,1708019446461,-4650.45,0.0003269,3]
[314138337,1708019446471,-2000.0,0.0003281,13]
[314138339,1708019446483,-2000.0,0.0003281,13]
[314138341,1708019446492,-151.11787194,0.00032814,4]
[314138343,1708019446501,-2000.0,0.0003282,13]
[314138344,1708019446510,-2000.0,0.0003282,13]
[314138345,1708019446519,-2000.0,0.0003283,13]
[314138346,1708019446529,-2000.0,0.0003283,13]
[314138347,1708019446539,-2000.0,0.0003284,13]
[314138348,1708019446547,-2000.0,0.0003284,13]
[314138349,1708019446625,-2000.0,0.0003285,13]
[314138351,1708019446635,-2000.0,0.0003285,13]
[314138352,1708019446644,-2000.0,0.0003286,13]
[314138354,1708019446653,-2000.0,0.0003286,13]
[314138356,1708019446662,-150.5,0.0003287,35]
[314138358,1708019446671,-2000.0,0.0003287,13]
[314138360,1708019446680,-2000.0,0.0003287,13]
[314138362,1708019446689,-500.0,0.00032874,7]
[314138364,1708019446698,-500.0,0.00032874,7]
[314138366,1708019446707,-500.0,0.00032874,7]
[314138368,1708019446716,-197.33585836,0.00032874,7]
[314138370,1708019446725,-645.68833248,0.00032874,7]
[314138372,1708019446736,-552.78853623,0.00032874,7]
[314138374,1708019446745,-500.0,0.00032874,7]
[314138376,1708019446754,-500.0,0.00032874,7]
[314138378,1708019446767,-500.0,0.00032874,7]
[314138380,1708019446777,-499.96128475,0.00032874,7]
[314138382,1708019446786,-500.0,0.00032874,7]
[314138384,1708019446795,-500.0,0.00032874,7]
[314138386,1708019446805,-500.0,0.00032874,7]
[314138388,1708019446814,-500.0,0.00032874,7]
[314138390,1708019446823,-500.0,0.00032874,7]
[314138392,1708019446832,-500.0,0.00032874,7]
[314138394,1708019446842,-358.52610876,0.00032874,7]
[314138396,1708019446850,-500.0,0.00032874,7]
[314138398,1708019446860,-591.61660817,0.00032874,7]
[314138400,1708019446869,-500.0,0.00032874,7]
[314138402,1708019446878,-500.0,0.00032874,7]
[314138404,1708019446889,-160.0,0.00032875,10]
[314138406,1708019446898,-990.58,0.00032875,2]
[314138408,1708019446908,-990.58,0.00032875,2]
[314138410,1708019446917,-990.58,0.00032875,2]
[314138412,1708019446926,-990.58,0.00032875,2]
[314138414,1708019446935,-990.58,0.00032875,2]
[314138416,1708019446945,-990.58,0.00032875,2]
[314138418,1708019446954,-990.58,0.00032875,2]
[314138420,1708019446964,-990.58,0.00032875,2]
[314138422,1708019446973,-990.58,0.00032875,2]
[314138424,1708019446984,-503.66058879,0.00032876,7]
[314138426,1708019446993,-502.26498,0.00032876,7]
[314138428,1708019447002,-253.39231964,0.00032876,7]
[314138430,1708019447012,-500.0,0.00032876,7]
[314138432,1708019447021,-500.0,0.00032876,7]
[314138434,1708019447031,-500.0,0.00032876,7]
[314138436,1708019447040,-500.0,0.00032876,7]
[314138438,1708019447049,-500.0,0.00032876,7]
[314138440,1708019447058,-519.75741861,0.00032876,7]
[314138442,1708019447067,-500.0,0.00032876,7]
[314138444,1708019447077,-396.51386456,0.00032876,7]
[314138446,1708019447085,-500.0,0.00032876,7]
[314138448,1708019447094,-502.92013251,0.00032876,7]
[314138450,1708019447103,-460.0,0.00032876,7]
[314138452,1708019447113,-500.0,0.00032876,7]
[314138454,1708019447122,-500.0,0.00032876,7]
[314138456,1708019447131,-500.0,0.00032876,7]
[314138458,1708019447140,-151.0,0.00032876,2]
[314138460,1708019447150,-151.0,0.00032876,2]
[314138462,1708019447158,-500.0,0.00032876,7]
[314138464,1708019447167,-506.95127322,0.00032876,7]
[314138466,1708019447176,-500.0,0.00032876,7]
[314138468,1708019447186,-500.0,0.00032876,7]
[314138470,1708019447195,-500.0,0.00032876,7]
[314138472,1708019447203,-592.75,0.00032876,7]
[314138474,1708019447212,-500.0,0.00032876,7]
[314138476,1708019447221,-500.0,0.00032876,7]
[314138478,1708019447233,-514.91981209,0.00032876,7]
[314138480,1708019447243,-500.0,0.00032876,7]
[314138482,1708019447252,-500.0,0.00032876,7]
[314138484,1708019447261,-500.0,0.00032876,7]
[314138486,1708019447270,-500.0,0.00032876,7]
[314138488,1708019447279,-901.11,0.00032876,7]
[314138490,1708019447289,-500.0,0.00032876,7]
[314138492,1708019447298,-500.0,0.00032876,7]
[314138494,1708019447307,-500.0,0.00032876,7]
[314138496,1708019447316,-500.0,0.00032876,7]
[314138498,1708019447325,-500.0,0.00032876,7]
[314138500,1708019447334,-347.51683518,0.00032876,7]
[314138502,1708019447344,-553.86325545,0.00032876,7]
[314138504,1708019447353,-500.0,0.00032876,7]
[314138506,1708019447362,-504.03989668,0.00032876,7]
[314138508,1708019447372,-393.93306636,0.00032876,7]
[314138510,1708019447381,-500.0,0.00032876,7]
[314138512,1708019447390,-500.0,0.00032876,7]
[314138514,1708019447399,-500.0,0.00032876,7]
[314138516,1708019447408,-500.0,0.00032876,7]
[314138518,1708019447417,-512.21825011,0.00032876,7]
[314138520,1708019447428,-500.0,0.00032876,7]
[314138522,1708019447440,-500.0,0.00032876,7]
[314138524,1708019447449,-500.0,0.00032876,7]
[314138526,1708019447458,-512.11252895,0.00032876,7]
[314138528,1708019447468,-500.0,0.00032876,7]
[314138530,1708019447479,-500.0,0.00032876,7]
[314138532,1708019447489,-582.68564277,0.00032876,7]
[314138533,1708019447498,-500.0,0.00032876,7]
[314138535,1708019447507,-500.0,0.00032876,7]
[314138537,1708019447518,-500.0,0.00032876,7]
[314138539,1708019447528,-500.0,0.00032876,7]
[314138541,1708019447538,-638.34637956,0.00032876,7]
[314138544,1708019447548,-500.0,0.00032876,7]
[314138546,1708019447558,-507.21096205,0.00032876,7]
[314138548,1708019447567,-500.0,0.00032876,7]
[314138550,1708019447576,-500.0,0.00032876,7]
[314138552,1708019447585,-506.44463582,0.00032876,7]
[314138554,1708019447594,-500.0,0.00032876,7]
[314138556,1708019447609,-719.02,0.00032876,7]
[314138558,1708019447618,-609.52,0.00032876,7]
[314138560,1708019447628,-500.0,0.00032876,7]
[314138562,1708019447637,-328.32247603,0.00032876,7]
[314138564,1708019447646,-557.13823248,0.00032876,7]
[314138566,1708019447656,-260.37284919,0.00032876,7]
[314138568,1708019447665,-500.0,0.00032876,7]
[314138570,1708019447676,-504.12580923,0.00032876,7]
[314138572,1708019447695,-500.0,0.00032876,7]
[314138574,1708019447712,-507.50151569,0.00032876,7]
[314138576,1708019447721,-220.0,0.00032876,2]
[314138578,1708019447732,-500.0,0.00032876,7]
[314138580,1708019447741,-500.0,0.00032876,7]
[314138582,1708019447752,-500.0,0.00032876,7]
[314138584,1708019447761,-530.95094477,0.00032876,7]
[314138586,1708019447771,-583.6952767,0.00032876,7]
[314138589,1708019447782,-511.75666933,0.00032876,7]
[314138590,1708019447792,-437.52618809,0.00032876,7]
[314138592,1708019447801,-500.0,0.00032876,7]
[314138595,1708019447811,-516.26871262,0.00032876,7]
[314138597,1708019447820,-500.0,0.00032876,7]
[314138599,1708019447829,-516.39323085,0.00032876,7]
[314138601,1708019447838,-501.76829055,0.00032876,7]
[314138603,1708019447847,-542.87,0.00032876,2]
[314138605,1708019447857,-3233.09,0.00032876,7]
[314138606,1708019447866,-500.0,0.00032876,7]
[314138609,1708019447876,-500.0,0.00032876,7]
[314138611,1708019447885,-500.0,0.00032876,7]
[314138612,1708019447895,-506.84728892,0.00032876,7]
[314138615,1708019447905,-500.0,0.00032876,7]
[314138617,1708019447915,-500.0,0.00032876,7]
[314138619,1708019447924,-500.0,0.00032876,7]
[314138627,1708019447996,-510.68739051,0.00032876,7]
[314138629,1708019448006,-500.0,0.00032876,7]
[314138631,1708019448016,-500.0,0.00032876,7]
[314138633,1708019448025,-505.49748624,0.00032876,7]
[314138636,1708019448035,-164.95275366,0.00032876,7]
[314138639,1708019448054,-212.87883413,0.00032876,7]
[314138641,1708019448064,-516.51970827,0.00032876,7]
[314138643,1708019448073,-292.49912931,0.00032876,7]
[314138645,1708019448083,-533.50988695,0.00032876,7]
[314138647,1708019448092,-515.08897743,0.00032876,7]
[314138649,1708019448101,-1000.0,0.00032876,2]
[314138651,1708019448109,-500.0,0.00032876,7]
[314138653,1708019448118,-502.41251574,0.00032876,7]
[314138655,1708019448127,-502.83232486,0.00032876,7]
[314138656,1708019448136,-503.20204968,0.00032876,7]
[314138658,1708019448145,-551.16346703,0.00032876,7]
[314138660,1708019448155,-197.7512666,0.00032876,7]
[314138663,1708019448166,-302.2487334,0.00032876,7]
[314138665,1708019448175,-88.7512666,0.00032876,7]
[314145893,1708019626433,-891.46791111,0.00026216,2]
[314145894,1708019626461,-906.97178235,0.00026216,2]
[314145895,1708019626489,-551.87330517,0.00026216,2]
[314145896,1708019626510,-11175.68700137,0.000288,2]
[314145905,1708019705816,-175.19728346,0.00021,2]
[314145906,1708019705837,-172.80271654,0.00022,2]
[314145907,1708019776292,-83.41886,0.00022,2]
[314145908,1708019776313,-591.35587278,0.000288,2]
[314145909,1708019776333,-155.0,0.00029,2]
[314145910,1708019776353,-1108.37437857,0.000293,2]
[314145911,1708019776374,-3875.38,0.0002999,3]
[314145912,1708019776398,-500.0,0.00029999,2]
[314145913,1708019776421,-500.0,0.00029999,2]
[314145914,1708019776444,-500.0,0.00029999,2]
[314145915,1708019776465,-500.0,0.00029999,2]
[314145916,1708019776486,-554.886062,0.00029999,2]
[314145917,1708019776507,-1024.11,0.00029999,2]
[314145918,1708019776532,-1024.11,0.00029999,2]
[314145919,1708019776551,-1024.11,0.00029999,2]
[314145920,1708019776572,-1024.11,0.00029999,2]
[314145921,1708019776610,-1024.11,0.00029999,2]
[314145922,1708019776634,-1024.11,0.00029999,2]
[314145923,1708019776655,-1024.11,0.00029999,2]
[314145924,1708019776677,-1024.11,0.00029999,2]
[314145925,1708019776698,-1024.11,0.00029999,2]
[314145926,1708019776723,-712.10385503,0.0003,3]
[314145927,1708019776743,-1039.641,0.0003,2]
[314145928,1708019776765,-67514.84997162,0.0003,30]
[314145931,1708020354677,-161.70687993,0.00026216,2]
[314145932,1708020513703,159.258246,0.00030959,120]
[314146051,1708020638084,-311.151105,0.00027938,2]
[314146053,1708020638093,-166.666666,0.00028311,2]
[314146055,1708020638102,-24900.0,0.00028531,2]
[314146057,1708020638112,-612.182229,0.00028727,3]
[314146059,1708020638124,-1420.467771,0.00028727,3]
[314146061,1708020638132,-820.67728041,0.00028727,3]
[314146063,1708020638143,-3055.44271959,0.00028727,3]
[314146065,1708020638152,-886.46791309,0.00028727,3]
[314146067,1708020638164,-2343.63208691,0.00028727,3]
[314146069,1708020638173,-2691.75,0.00028727,3]
[314146071,1708020638183,-50000.0,0.00028737,2]
[314146073,1708020638195,-4565.14652498,0.00028737,2]
[314146209,1708020643065,-166.666666,0.00027387,2]
[314146211,1708020643074,-1653.873334,0.00028737,2]
[314146231,1708020646071,-479.34453621,0.00028737,2]
[314146232,1708020646367,-4946.94007711,0.00028737,2]
[314146233,1708020741642,-2252.0,0.00026637,2]
[314146234,1708020814206,-155.0,0.00026637,2]
[314146236,1708020880613,-94.4413969,0.00026637,2]
[314146237,1708020880633,-250.0,0.00028542,2]
[314146238,1708020880660,-38354.6955277,0.00028737,2]
[314146239,1708020880679,-764.2777321,0.00028749,2]
[314146240,1708020880699,-155.0,0.00029,2]
[314146241,1708020880719,-830.99535844,0.0002904,2]
[314146242,1708020880739,-200.0,0.00029311,15]
[314146243,1708020880759,-200.0,0.00029311,15]
[314146244,1708020880780,-7416.08,0.00029326,3]
[314146245,1708020880803,-42287.50998486,0.00029336,5]
[314146246,1708020959260,-369.0,0.00026216,2]
[314146247,1708021094821,-0.76116426,0.00026216,2]
[314146248,1708021094844,-449.23883574,0.00026235,2]
[314146253,1708021357716,-2.61671089,0.00026235,2]
[314146254,1708021357736,-1497.38328911,0.00027236,2]
[314146255,1708021428699,-1000.0,0.00026263,3]
[314146256,1708021623588,-170.24430882,0.00027236,2]
[314146257,1708021623608,-169.486684,0.00027425,2]
[314146258,1708021623630,-24526.26900718,0.00027695,2]
[314146382,1708021833634,-167.0894354,0.00027125,2]
[314146383,1708021833643,-250.0,0.00027594,2]
[314146384,1708021833652,-373.73099282,0.00027695,2]
[314146385,1708021833662,-155.0,0.00027736,2]
[314146386,1708021833672,-200.0,0.00028248,15]
[314146387,1708021833682,-200.0,0.00028248,15]
[314146388,1708021833691,-766.48436165,0.00028624,4]
[314146389,1708021833717,-303.62460138,0.00028624,4]
[314146390,1708021833729,-169.952837,0.00028701,2]
[314146391,1708021833738,-830.50076281,0.00028709,3]
[314146392,1708021833749,-373.32890577,0.00028709,3]
[314146419,1708021838327,-5622.14033142,0.00028709,3]
[314146420,1708021838337,-5688.31,0.00028709,3]
[314146421,1708021838347,-4740.25,0.00028709,3]
[314146422,1708021838357,-16021.72,0.00028718,2]
[314146423,1708021838451,-500.0,0.00028718,2]
[314146424,1708021838462,-1547.14,0.00028718,2]
[314146425,1708021838472,-502.91675101,0.00028718,2]
[314146426,1708021838483,-500.0,0.00028718,2]
[314146427,1708021838493,-311.37712662,0.00028718,2]
[314146428,1708021838502,-510.29042378,0.00028718,2]
[314146429,1708021838511,-501.20731694,0.00028718,2]
[314146430,1708021838521,-502.24307107,0.00028718,2]
[314146431,1708021838530,-15569.57,0.00028718,2]
[314146432,1708021838538,-50000.0,0.00028719,2]
[314146433,1708021838547,-250.0,0.00028733,2]
[314146434,1708021838556,-1916.23698928,0.00028733,2]
[314146435,1708021838566,-461.98217731,0.00028733,2]
[314146436,1708021838575,-368.37442533,0.00028733,2]
[314146437,1708021838585,-1916.23698928,0.00028733,2]
[314146438,1708021838593,-500.0,0.00028733,2]
[314146439,1708021838604,-1916.23698928,0.00028733,2]
[314146440,1708021838613,-469.59646068,0.00028733,2]
[314146441,1708021838623,-500.0,0.00028733,2]
[314146442,1708021838632,-1916.23698928,0.00028733,2]
[314146443,1708021838642,-1916.23698928,0.00028733,2]
[314146444,1708021838651,-473.94695713,0.00028733,2]
[314146445,1708021838661,-1916.23698928,0.00028733,2]
[314146446,1708021838670,-1916.23698928,0.00028733,2]
[314146447,1708021838679,-1916.23698928,0.00028733,2]
[314146448,1708021838688,-1916.23698928,0.00028733,2]
[314146449,1708021838698,-1916.23698928,0.00028733,2]
[314146450,1708021838707,-1916.23698928,0.00028733,2]
[314146451,1708021838717,-1916.23698928,0.00028733,2]
[314146452,1708021838727,-1916.23698928,0.00028733,2]
[314146453,1708021838739,-1916.23698928,0.00028733,2]
[314146454,1708021838749,-1916.23698928,0.00028733,2]
[314146455,1708021838758,-1916.23698928,0.00028733,2]
[314146456,1708021838768,-1916.23698928,0.00028733,2]
[314146457,1708021838778,-1916.23698928,0.00028733,2]
[314146458,1708021838788,-1916.23698928,0.00028733,2]
[314146459,1708021838797,-1916.23698928,0.00028733,2]
[314146460,1708021838808,-1916.23698928,0.00028733,2]
[314146461,1708021838818,-1916.23698928,0.00028733,2]
[314146462,1708021838827,-1916.23698928,0.00028733,2]
[314146463,1708021838837,-1916.23698928,0.00028733,2]
[314146464,1708021838846,-1916.23698928,0.00028733,2]
[314146465,1708021838855,-1916.23698928,0.00028733,2]
[314146466,1708021838865,-1916.23698928,0.00028733,2]
[314146467,1708021838874,-1916.23698928,0.00028733,2]
[314146468,1708021838883,-1916.23698928,0.00028733,2]
[314146469,1708021838894,-1916.23698928,0.00028733,2]
[314146470,1708021838903,-1916.23698928,0.00028733,2]
[314146471,1708021838913,-1916.23698928,0.00028733,2]
[314146472,1708021838923,-1916.23698928,0.00028733,2]
[314146473,1708021838934,-1916.23698928,0.00028733,2]
[314146474,1708021838944,-1916.23698928,0.00028733,2]
[314146475,1708021838954,-1916.23698928,0.00028733,2]
[314146476,1708021838964,-1916.23698928,0.00028733,2]
[314146477,1708021838974,-1916.23698928,0.00028733,2]
[314146478,1708021838984,-1916.23698928,0.00028733,2]
[314146479,1708021838995,-1916.23698928,0.00028733,2]
[314146480,1708021839006,-1916.23698928,0.00028733,2]
[314146481,1708021839015,-1916.23698928,0.00028733,2]
[314146482,1708021839026,-1916.23698928,0.00028733,2]
[314146483,1708021839036,-1916.23698928,0.00028733,2]
[314146484,1708021839046,-1916.23698928,0.00028733,2]
[314146485,1708021839056,-1916.23698928,0.00028733,2]
[314146486,1708021839067,-1916.23698928,0.00028733,2]
[314146487,1708021839078,-1916.23698928,0.00028733,2]
[314146488,1708021839090,-1916.23698928,0.00028733,2]
[314146489,1708021839100,-1916.23698928,0.00028733,2]
[314146490,1708021839111,-1916.23698928,0.00028733,2]
[314146491,1708021839123,-1916.23698928,0.00028733,2]
[314146492,1708021839133,-1916.23698928,0.00028733,2]
[314146493,1708021839142,-1916.23698928,0.00028733,2]
[314146494,1708021839153,-1916.23698928,0.00028733,2]
[314146495,1708021839165,-1916.23698928,0.00028733,2]
[314146496,1708021839177,-1916.23698928,0.00028733,2]
[314146497,1708021839188,-1916.23698928,0.00028733,2]
[314146498,1708021839198,-1916.23698928,0.00028733,2]
[314146499,1708021839208,-1916.23698928,0.00028733,2]
[314146500,1708021839220,-1916.23698928,0.00028733,2]
[314146501,1708021839230,-1916.23698928,0.00028733,2]
[314146502,1708021839239,-1916.23698928,0.00028733,2]
[314146503,1708021839249,-1916.23698928,0.00028733,2]
[314146504,1708021839259,-1916.23698928,0.00028733,2]
[314146505,1708021839270,-1916.23698928,0.00028733,2]
[314146506,1708021839278,-1916.23698928,0.00028733,2]
[314146507,1708021839287,-1916.23698928,0.00028733,2]
[314146508,1708021839298,-1916.23698928,0.00028733,2]
[314146509,1708021839307,-500.0,0.00028735,2]
[314146510,1708021839317,-500.0,0.00028735,2]
[314146511,1708021839327,-500.0,0.00028735,2]
[314146512,1708021839337,-500.0,0.00028735,2]
[314146513,1708021839346,-1000.0,0.00028735,5]
[314146514,1708021839356,-404.84073199,0.00028735,2]
[314146515,1708021839368,-981.92,0.00028735,2]
[314146516,1708021839380,-500.0,0.00028735,2]
[314146517,1708021839390,-500.0,0.00028735,2]
[314146518,1708021839401,-1947.81,0.00028735,2]
[314146519,1708021839411,-500.0,0.00028735,2]
[314146520,1708021839423,-500.0,0.00028735,2]
[314146521,1708021839433,-495.88183261,0.00028735,2]
[314146522,1708021839444,-506.57653874,0.00028735,2]
[314146523,1708021839454,-600.56,0.00028735,2]
[314146524,1708021839463,-1109.46,0.00028735,2]
[314146525,1708021839474,-25327.62,0.00028735,2]
[314146526,1708021839486,-500.0,0.00028735,2]
[314146527,1708021839495,-500.0,0.00028735,2]
[314146528,1708021839508,-500.0,0.00028735,2]
[314146529,1708021839519,-500.0,0.00028735,2]
[314146530,1708021839530,-500.0,0.00028735,2]
[314146531,1708021839540,-500.0,0.00028735,2]
[314146532,1708021839549,-500.0,0.00028735,2]
[314146533,1708021839559,-500.0,0.00028735,2]
[314146534,1708021839568,-862.87,0.00028735,2]
[314146535,1708021839579,-624.8,0.00028735,2]
[314146536,1708021839588,-500.0,0.00028735,2]
[314146537,1708021839598,-500.0,0.00028735,2]
[314146538,1708021839607,-500.0,0.00028735,2]
[314146539,1708021839616,-2823.76,0.00028735,2]
[314146540,1708021839626,-1254.76,0.00028735,2]
[314146541,1708021839635,-426.08,0.00028735,2]
[314146542,1708021839644,-500.0,0.00028735,2]
[314146543,1708021839653,-500.0,0.00028735,2]
[314146544,1708021839663,-500.0,0.00028735,2]
[314146545,1708021839672,-470.3612371,0.00028735,2]
[314146546,1708021839682,-442.04517344,0.00028735,2]
[314146547,1708021839691,-3953.53,0.00028735,2]
[314146548,1708021839701,-500.0,0.00028735,2]
[314146549,1708021839710,-500.0,0.00028735,2]
[314146550,1708021839720,-500.0,0.00028735,2]
[314146551,1708021839729,-500.0,0.00028735,2]
[314146552,1708021839738,-1967.44,0.00028735,2]
[314146553,1708021839748,-500.0,0.00028735,2]
[314146554,1708021839757,-500.0,0.00028735,2]
[314146555,1708021839766,-500.0,0.00028735,2]
[314146556,1708021839775,-3723.72,0.00028735,2]
[314146557,1708021839785,-1478.7,0.00028735,2]
[314146558,1708021839794,-500.0,0.00028735,2]
[314146559,1708021839804,-500.0,0.00028735,2]
[314146560,1708021839814,-3326.07,0.00028735,2]
[314146561,1708021839823,-2147.48,0.00028735,2]
[314146562,1708021839832,-556.41,0.00028735,2]
[314146563,1708021839842,-500.0,0.00028735,2]
[314146564,1708021839852,-390.0,0.00028735,2]
[314146565,1708021839862,-505.73434112,0.00028735,2]
[314146566,1708021839872,-375.44487099,0.00028735,2]
[314146567,1708021839883,-500.0,0.00028736,2]
[314146568,1708021839893,-500.0,0.00028736,2]
[314146569,1708021839902,-3312.44,0.00028736,2]
[314146570,1708021839912,-2144.83,0.00028736,2]
[314146571,1708021839921,-3379.95,0.00028736,2]
[314146572,1708021839932,-500.0,0.00028736,2]
[314146573,1708021839941,-500.0,0.00028736,2]
[314146574,1708021839951,-339.19159002,0.00028736,2]
[314146575,1708021839961,-582.91,0.00028736,2]